fUSD/lending_fUSD_20250221
["ID","MTS","AMOUNT","RATE_DAILY","PERIOD"]
[353991438,1740175845777,-1195.87,0.00011279,2]
[353991440,1740175845786,-500.0,0.00011279,2]
[353991442,1740175845796,-1159.59,0.00011279,2]
[353991444,1740175845807,-500.0,0.00011279,2]
[353991446,1740175845817,-500.0,0.00011279,2]
[353991448,1740175845826,-500.0,0.00011279,2]
[353991450,1740175845836,-716.76,0.00011279,2]
[353991452,1740175845845,-500.0,0.00011279,2]
[353991454,1740175845854,-500.0,0.00011279,2]
[353991456,1740175845864,-2524.55,0.00011279,2]
[353991457,1740175845873,-500.0,0.00011279,2]
[353991460,1740175845883,-678.77,0.00011279,2]
[353991462,1740175845893,-500.0,0.0001128,2]
[353991464,1740175845902,-500.0,0.0001128,2]
[353991466,1740175845912,-292.43,0.0001128,2]
[353991468,1740175845921,-500.0,0.0001128,2]
[353991469,1740175845931,-150.97,0.0001128,2]
[353991471,1740175845941,-274.19,0.0001128,2]
[353991473,1740175845950,-500.0,0.0001128,2]
[353991476,1740175845960,-500.0,0.0001128,2]
[353991478,1740175845969,-521.2239253,0.0001128,2]
[353991480,1740175845979,-410.12,0.0001128,2]
[353991482,1740175845988,-500.0,0.0001128,2]
[353991484,1740175845998,-409.81146555,0.0001128,2]
[353991485,1740175846007,-831.16,0.0001128,2]
[353991488,1740175846016,-500.0,0.0001128,2]
[353991490,1740175846026,-500.0,0.0001128,2]
[353991492,1740175846035,-212.80040076,0.0001128,2]
[353991494,1740175846045,-265.08,0.0001128,2]
[353991496,1740175846054,-500.0,0.0001128,2]
[353991498,1740175846064,-672.19,0.0001128,2]
[353991499,1740175846073,-533.82102352,0.0001128,2]
[353991501,1740175846083,-500.0,0.0001128,2]
[353991503,1740175846092,-500.0,0.0001128,2]
[353991505,1740175846102,-189.6,0.0001128,2]
[353991507,1740175846112,-521.23393049,0.0001128,2]
[353991509,1740175846122,-500.0,0.0001128,2]
[353991511,1740175846132,-614.03,0.0001128,2]
[353991513,1740175846141,-500.0,0.0001128,2]
[353991515,1740175846151,-500.0,0.0001128,2]
[353991517,1740175846162,-500.0,0.0001128,2]
[353991519,1740175846171,-500.0,0.0001128,2]
[353991521,1740175846181,-500.0,0.0001128,2]
[353991523,1740175846191,-586.13,0.0001128,2]
[353991525,1740175846200,-500.0,0.0001128,2]
[353991527,1740175846210,-500.0,0.0001128,2]
[353991529,1740175846219,-180.54,0.0001128,2]
[353991531,1740175846229,-500.0,0.0001128,2]
[353991533,1740175846238,-500.0,0.0001128,2]
[353991535,1740175846247,-500.0,0.0001128,2]
[353991537,1740175846256,-500.0,0.0001128,2]
[353991539,1740175846266,-161.08,0.0001128,2]
[353991541,1740175846275,-500.0,0.0001128,2]
[353991543,1740175846285,-252.41,0.0001128,2]
[353991546,1740175846294,-500.0,0.0001128,2]
[353991548,1740175846304,-500.0,0.0001128,2]
[353991550,1740175846314,-500.0,0.0001128,2]
[353991552,1740175846323,-500.0,0.0001128,2]
[353991554,1740175846332,-240.32,0.0001128,2]
[353991556,1740175846341,-500.0,0.0001128,2]
[353991558,1740175846350,-500.0,0.0001128,2]
[353991560,1740175846359,-500.0,0.0001128,2]
[353991562,1740175846368,-500.0,0.0001128,2]
[353991564,1740175846377,-500.0,0.0001128,2]
[353991566,1740175846386,-500.0,0.0001128,2]
[353991568,1740175846395,-500.0,0.0001128,2]
[353991570,1740175846404,-500.0,0.0001128,2]
[353991571,1740175846414,-500.0,0.0001128,2]
[353991572,1740175846423,-500.0,0.0001128,2]
[353991573,1740175846433,-235.19,0.0001128,2]
[353991575,1740175846442,-528.6,0.0001128,2]
[353991577,1740175846452,-500.0,0.0001128,2]
[353991578,1740175846461,-596.02,0.0001128,2]
[353991580,1740175846470,-907.74,0.0001128,2]
[353991582,1740175846480,-500.0,0.0001128,2]
[353991584,1740175846489,-500.0,0.0001128,2]
[353991585,1740175846498,-500.0,0.0001128,2]
[353991587,1740175846507,-500.0,0.0001128,2]
[353991589,1740175846517,-500.0,0.0001128,2]
[353991591,1740175846527,-500.0,0.0001128,2]
[353991592,1740175846537,-500.0,0.0001128,2]
[353991593,1740175846546,-500.0,0.0001128,2]
[353991594,1740175846556,-502.60152848,0.0001128,2]
[353991596,1740175846566,-500.0,0.0001128,2]
[353991598,1740175846575,-633.15,0.0001128,2]
[353991600,1740175846585,-224.44,0.0001128,2]
[353991601,1740175846594,-1053.43,0.0001128,2]
[353991602,1740175846605,-500.0,0.0001128,2]
[353991603,1740175846614,-405.49,0.0001128,2]
[353991604,1740175846624,-500.0,0.0001128,2]
[353991605,1740175846635,-505.52,0.0001128,2]
[353991606,1740175846646,-500.0,0.0001128,2]
[353991607,1740175846656,-640.1,0.0001128,2]
[353991608,1740175846665,-157.34739271,0.0001128,2]
[353991609,1740175846675,-530.03057096,0.0001128,2]
[353991610,1740175846684,-500.0,0.0001128,2]
[353991611,1740175846694,-235.77266331,0.00011281,2]
[353991612,1740175846704,-500.0,0.00011281,2]
[353991613,1740175846713,-425.30673529,0.00011281,2]
[353991614,1740175846722,-500.0,0.00011281,2]
[353991615,1740175846732,-500.0,0.00011281,2]
[353991616,1740175846741,-500.0,0.00011281,2]
[353991617,1740175846750,-500.0,0.00011281,2]
[353991618,1740175846759,-500.0,0.00011281,2]
[353991619,1740175846768,-500.0,0.00011281,2]
[353991620,1740175846778,-211.44,0.00011281,2]
[353991621,1740175846787,-595.26,0.00011281,2]
[353991622,1740175846797,-500.0,0.00011281,2]
[353991623,1740175846806,-500.0,0.00011281,2]
[353991624,1740175846816,-500.0,0.00011281,2]
[353991625,1740175846826,-500.0,0.00011281,2]
[353991626,1740175846835,-503.76,0.00011281,2]
[353991627,1740175846844,-500.0,0.00011281,2]
[353991628,1740175846854,-500.0,0.00011281,2]
[353991629,1740175846863,-500.0,0.00011281,2]
[353991630,1740175846873,-500.0,0.00011281,2]
[353991631,1740175846883,-500.0,0.00011281,2]
[353991632,1740175846892,-429.09842391,0.00011281,2]
[353991633,1740175846901,-500.0,0.00011281,2]
[353991634,1740175846911,-500.0,0.00011281,2]
[353991635,1740175846920,-500.0,0.00011281,2]
[353991636,1740175846930,-500.0,0.00011281,2]
[353991637,1740175846940,-587.93,0.00011281,2]
[353991638,1740175846950,-500.0,0.00011281,2]
[353991639,1740175846959,-546.63,0.00011281,2]
[353991640,1740175846969,-500.0,0.00011281,2]
[353991641,1740175846978,-500.0,0.00011281,2]
[353991642,1740175846988,-500.0,0.00011281,2]
[353991643,1740175846998,-500.0,0.00011281,2]
[353991644,1740175847007,-500.0,0.00011281,2]
[353991645,1740175847017,-500.0,0.00011281,2]
[353991646,1740175847026,-515.89,0.00011281,2]
[353991647,1740175847035,-500.0,0.00011281,2]
[353991648,1740175847045,-579.03,0.00011281,2]
[353991649,1740175847055,-420.6,0.00011281,2]
[353991650,1740175847065,-500.0,0.00011281,2]
[353991651,1740175847075,-500.0,0.00011281,2]
[353991652,1740175847086,-500.0,0.00011281,2]
[353991653,1740175847097,-500.0,0.00011281,2]
[353991654,1740175847108,-500.0,0.00011281,2]
[353991655,1740175847117,-500.0,0.00011281,2]
[353991656,1740175847126,-500.0,0.00011281,2]
[353991657,1740175847135,-500.0,0.00011281,2]
[353991658,1740175847145,-644.72,0.00011281,2]
[353991659,1740175847156,-500.0,0.00011281,2]
[353991660,1740175847166,-712.4,0.00011281,2]
[353991661,1740175847176,-208.48,0.00011281,2]
[353991662,1740175847185,-649.39,0.00011281,2]
[353991663,1740175847194,-500.0,0.00011281,2]
[353991664,1740175847203,-500.0,0.00011281,2]
[353991665,1740175847213,-1563.0,0.00011281,2]
[353991666,1740175847222,-500.0,0.00011281,2]
[353991667,1740175847231,-500.0,0.00011281,2]
[353991668,1740175847240,-1053.07,0.00011281,2]
[353991669,1740175847250,-500.0,0.00011281,2]
[353991670,1740175847260,-364.64267394,0.00011281,2]
[353991671,1740175847270,-500.0,0.00011281,2]
[353991672,1740175847280,-500.0,0.00011281,2]
[353991673,1740175847289,-1338.11,0.00011281,2]
[353991674,1740175847299,-500.0,0.00011281,2]
[353991675,1740175847309,-1204.61,0.00011281,2]
[353991676,1740175847320,-516.44,0.00011281,2]
[353991677,1740175847330,-524.75,0.00011281,2]
[353991678,1740175847339,-163.26,0.00011281,2]
[353991679,1740175847348,-500.0,0.00011281,2]
[353991680,1740175847357,-500.0,0.00011281,2]
[353991681,1740175847367,-1032.03,0.00011281,2]
[353991682,1740175847377,-500.0,0.00011281,2]
[353991683,1740175847386,-271.55,0.00011281,2]
[353991684,1740175847395,-500.0,0.00011281,2]
[353991685,1740175847404,-500.0,0.00011281,2]
[353991686,1740175847414,-500.0,0.00011281,2]
[353991687,1740175847424,-371.81,0.00011281,2]
[353991688,1740175847434,-500.0,0.00011281,2]
[353991689,1740175847443,-500.0,0.00011281,2]
[353991690,1740175847452,-500.0,0.00011281,2]
[353991691,1740175847462,-408.5,0.00011281,2]
[353991692,1740175847471,-500.0,0.00011281,2]
[353991693,1740175847481,-768.2,0.00011281,2]
[353991694,1740175847491,-500.0,0.00011281,2]
[353991695,1740175847500,-785.25,0.00011281,2]
[353991696,1740175847510,-500.0,0.00011281,2]
[353991697,1740175847519,-838.82,0.00011281,2]
[353991698,1740175847528,-500.0,0.00011281,2]
[353991699,1740175847538,-500.0,0.00011281,2]
[353991700,1740175847547,-1010.76,0.00011281,2]
[353991701,1740175847560,-2224.65,0.00011281,2]
[353991702,1740175847572,-500.0,0.00011281,2]
[353991703,1740175847587,-500.0,0.00011281,2]
[353991704,1740175847603,-500.0,0.00011281,2]
[353991705,1740175847616,-500.0,0.00011281,2]
[353991706,1740175847627,-557.6,0.00011281,2]
[353991707,1740175847637,-500.0,0.00011281,2]
[353991708,1740175847651,-432.4380807,0.00011281,2]
[353991709,1740175847664,-500.0,0.00011281,2]
[353991710,1740175847678,-500.0,0.00011281,2]
[353991711,1740175847690,-500.0,0.00011281,2]
[353991712,1740175847703,-500.0,0.00011281,2]
[353991713,1740175847716,-500.0,0.00011281,2]
[353991714,1740175847729,-150.0,0.00011286,2]
[353991715,1740175847740,-150.0,0.00011295,2]
[353991716,1740175847752,-150.0,0.00011306,2]
[353991717,1740175847763,-500.0,0.00011346,2]
[353991718,1740175847773,-840.36,0.00011361,2]
[353991719,1740175847785,-500.0,0.00011361,2]
[353991720,1740175847798,-550.99,0.00011361,2]
[353991721,1740175847812,-456.441457,0.00011361,2]
[353991722,1740175847825,-505.12,0.00011361,2]
[353991723,1740175847837,-1301.04,0.00011361,2]
[353991724,1740175847849,-660.858377,0.00011361,2]
[353991725,1740175847862,-731.38,0.00011361,2]
[353991726,1740175847874,-215.16,0.00011361,2]
[353991727,1740175847887,-500.0,0.00011361,2]
[353991728,1740175847899,-643.93,0.00011361,2]
[353991729,1740175847911,-772.23,0.00011361,2]
[353991730,1740175847924,-770.4,0.00011361,2]
[353991731,1740175847936,-1037.35,0.00011361,2]
[353991732,1740175847949,-500.0,0.00011361,2]
[353991733,1740175847961,-761.15,0.00011361,2]
[353991734,1740175847974,-694.42,0.00011361,2]
[353991735,1740175847986,-999.84,0.00011361,2]
[353991736,1740175847998,-2978.62,0.00011361,2]
[353991737,1740175848011,-531.77,0.00011361,2]
[353991738,1740175848023,-1077.31,0.00011361,2]
[353991739,1740175848035,-1338.15,0.00011361,2]
[353991740,1740175848047,-500.0,0.00011361,2]
[353991741,1740175848061,-999.03,0.00011361,2]
[353991742,1740175848071,-772.25,0.00011361,2]
[353991743,1740175848081,-687.87,0.00011361,2]
[353991744,1740175848092,-798.38,0.00011361,2]
[353991745,1740175848105,-1330.6,0.00011361,2]
[353991746,1740175848120,-580.79,0.00011361,2]
[353991747,1740175848132,-500.0,0.00011361,2]
[353991748,1740175848143,-1652.61,0.00011361,2]
[353991749,1740175848153,-584.29,0.00011361,2]
[353991750,1740175848163,-500.0,0.00011361,2]
[353991751,1740175848180,-1064.57,0.00011361,2]
[353991752,1740175848192,-1257.4,0.00011361,2]
[353991753,1740175848205,-617.67,0.00011361,2]
[353991754,1740175848216,-1008.78,0.00011361,2]
[353991755,1740175848228,-934.47,0.00011361,2]
[353991756,1740175848238,-607.43,0.00011361,2]
[353991757,1740175848249,-1149.16,0.00011361,2]
[353991758,1740175848260,-500.0,0.00011361,2]
[353991759,1740175848271,-557.37,0.00011361,2]
[353991760,1740175848282,-500.0,0.00011361,2]
[353991761,1740175848293,-1059.67,0.00011361,2]
[353991762,1740175848309,-500.0,0.00011361,2]
[353991763,1740175848321,-713.85,0.00011361,2]
[353991764,1740175848332,-619.22,0.00011361,2]
[353991765,1740175848344,-500.0,0.00011361,2]
[353991766,1740175848354,-500.0,0.00011361,2]
[353991767,1740175848366,-877.35,0.00011361,2]
[353991768,1740175848378,-1059.0,0.00011361,2]
[353991769,1740175848391,-1371.99,0.00011361,2]
[353991770,1740175848402,-1195.87,0.00011361,2]
[353991771,1740175848413,-500.0,0.00011361,2]
[353991772,1740175848424,-1159.59,0.00011361,2]
[353991773,1740175848435,-500.0,0.00011361,2]
[353991774,1740175848447,-500.0,0.00011361,2]
[353991775,1740175848457,-500.0,0.00011361,2]
[353991776,1740175848468,-716.76,0.00011361,2]
[353991777,1740175848479,-500.0,0.00011361,2]
[353991778,1740175848491,-500.0,0.00011361,2]
[353991779,1740175848502,-2524.55,0.00011361,2]
[353991780,1740175848513,-500.0,0.00011361,2]
[353991781,1740175848525,-500.0,0.00011361,2]
[353991782,1740175848539,-678.77,0.00011361,2]
[353991783,1740175848550,-500.0,0.00011362,2]
[353991784,1740175848564,-500.0,0.00011362,2]
[353991785,1740175848575,-500.0,0.00011362,2]
[353991786,1740175848586,-500.0,0.00011362,2]
[353991787,1740175848599,-500.0,0.00011362,2]
[353991788,1740175848610,-514.02,0.00011362,2]
[353991789,1740175848622,-831.16,0.00011362,2]
[353991790,1740175848633,-500.0,0.00011362,2]
[353991791,1740175848646,-547.76,0.00011362,2]
[353991792,1740175848657,-672.19,0.00011362,2]
[353991793,1740175848668,-606.07459567,0.00011362,2]
[353991794,1740175848680,-614.03,0.00011362,2]
[353991795,1740175848691,-500.0,0.00011362,2]
[353991796,1740175848704,-500.0,0.00011362,2]
[353991797,1740175848716,-500.0,0.00011362,2]
[353991798,1740175848728,-500.0,0.00011362,2]
[353991799,1740175848740,-586.13,0.00011362,2]
[353991800,1740175848752,-500.0,0.00011362,2]
[353991801,1740175848764,-500.0,0.00011362,2]
[353991802,1740175848776,-500.0,0.00011362,2]
[353991803,1740175848787,-500.0,0.00011362,2]
[353991804,1740175848800,-500.0,0.00011362,2]
[353991805,1740175848813,-500.0,0.00011362,2]
[353991806,1740175848827,-500.0,0.00011362,2]
[353991807,1740175848839,-240.23238863,0.00011362,2]
[353991808,1740175848850,-500.0,0.00011362,2]
[353991809,1740175848862,-252.16,0.00011362,2]
[353991810,1740175848874,-500.0,0.00011362,2]
[353991811,1740175848885,-476.56030358,0.00011362,2]
[353991812,1740175848898,-500.0,0.00011362,2]
[353991813,1740175848910,-500.0,0.00011362,2]
[353991814,1740175848922,-500.0,0.00011362,2]
[353991815,1740175848934,-500.0,0.00011362,2]
[353991816,1740175848947,-399.12,0.00011362,2]
[353991817,1740175848959,-500.0,0.00011362,2]
[353991818,1740175848971,-500.0,0.00011362,2]
[353991819,1740175848984,-347.59,0.00011362,2]
[353991820,1740175848996,-500.0,0.00011362,2]
[353991821,1740175849008,-596.02,0.00011362,2]
[353991822,1740175849021,-907.74,0.00011362,2]
[353991823,1740175849034,-500.0,0.00011362,2]
[353991824,1740175849046,-500.0,0.00011362,2]
[353991825,1740175849058,-500.0,0.00011362,2]
[353991826,1740175849070,-500.0,0.00011362,2]
[353991827,1740175849082,-500.0,0.00011362,2]
[353991828,1740175849094,-500.0,0.00011362,2]
[353991829,1740175849108,-500.0,0.00011362,2]
[353991830,1740175849121,-500.0,0.00011362,2]
[353991831,1740175849133,-633.15,0.00011362,2]
[353991832,1740175849145,-1053.43,0.00011362,2]
[353991833,1740175849157,-500.0,0.00011362,2]
[353991834,1740175849169,-500.0,0.00011362,2]
[353991835,1740175849180,-505.52,0.00011362,2]
[353991836,1740175849192,-273.41907089,0.00011362,2]
[353991837,1740175849204,-640.1,0.00011362,2]
[353991838,1740175849215,-500.0,0.00011362,2]
[353991839,1740175849226,-500.0,0.00011363,2]
[353991840,1740175849238,-500.0,0.00011363,2]
[353991841,1740175849251,-500.0,0.00011363,2]
[353991842,1740175849263,-500.0,0.00011363,2]
[353991843,1740175849275,-500.0,0.00011363,2]
[353991844,1740175849287,-500.0,0.00011363,2]
[353991845,1740175849299,-500.0,0.00011363,2]
[353991846,1740175849313,-315.37,0.00011363,2]
[353991847,1740175849324,-500.0,0.00011363,2]
[353991848,1740175849336,-500.0,0.00011363,2]
[353991849,1740175849347,-338.54,0.00011363,2]
[353991850,1740175849358,-500.0,0.00011363,2]
[353991851,1740175849370,-500.0,0.00011363,2]
[353991852,1740175849382,-303.8,0.00011363,2]
[353991853,1740175849394,-500.0,0.00011363,2]
[353991854,1740175849405,-500.0,0.00011363,2]
[353991855,1740175849418,-364.5,0.00011363,2]
[353991856,1740175849429,-500.0,0.00011363,2]
[353991857,1740175849442,-500.0,0.00011363,2]
[353991858,1740175849453,-587.93,0.00011363,2]
[353991859,1740175849465,-500.0,0.00011363,2]
[353991860,1740175849477,-546.63,0.00011363,2]
[353991861,1740175849489,-500.0,0.00011363,2]
[353991862,1740175849499,-500.0,0.00011363,2]
[353991863,1740175849509,-500.0,0.00011363,2]
[353991864,1740175849519,-500.0,0.00011363,2]
[353991865,1740175849529,-351.28,0.00011363,2]
[353991866,1740175849539,-515.89,0.00011363,2]
[353991867,1740175849549,-500.0,0.00011363,2]
[353991868,1740175849559,-579.03,0.00011363,2]
[353991869,1740175849571,-500.0,0.00011363,2]
[353991870,1740175849581,-248.91,0.00011363,2]
[353991871,1740175849590,-500.0,0.00011363,2]
[353991872,1740175849603,-500.0,0.00011363,2]
[353991873,1740175849613,-500.0,0.00011363,2]
[353991874,1740175849623,-500.0,0.00011363,2]
[353991875,1740175849633,-303.87,0.00011363,2]
[353991876,1740175849643,-644.72,0.00011363,2]
[353991877,1740175849652,-500.0,0.00011363,2]
[353991878,1740175849661,-712.4,0.00011363,2]
[353991879,1740175849671,-649.39,0.00011363,2]
[353991880,1740175849681,-500.0,0.00011363,2]
[353991881,1740175849692,-504.93858232,0.00011363,2]
[353991882,1740175849703,-1563.0,0.00011363,2]
[353991883,1740175849712,-500.0,0.00011363,2]
[353991884,1740175849721,-500.0,0.00011363,2]
[353991885,1740175849731,-1053.07,0.00011363,2]
[353991886,1740175849741,-284.11563007,0.00011363,2]
[353991887,1740175849750,-500.0,0.00011363,2]
[353991888,1740175849759,-500.0,0.00011363,2]
[353991889,1740175849769,-1338.11,0.00011363,2]
[353991890,1740175849778,-500.0,0.00011363,2]
[353991891,1740175849787,-1204.61,0.00011363,2]
[353991892,1740175849797,-516.44,0.00011363,2]
[353991893,1740175849806,-524.75,0.00011363,2]
[353991894,1740175849817,-150.0,0.00011363,2]
[353991895,1740175849827,-350.12,0.00011363,2]
[353991896,1740175849836,-1032.03,0.00011363,2]
[353991897,1740175849846,-500.0,0.00011363,2]
[353991898,1740175849855,-500.0,0.00011363,2]
[353991899,1740175849865,-500.0,0.00011363,2]
[353991900,1740175849875,-500.0,0.00011363,2]
[353991901,1740175849885,-500.0,0.00011363,2]
[353991902,1740175849895,-565.44,0.00011363,2]
[353991903,1740175849905,-500.0,0.00011363,2]
[353991904,1740175849915,-500.0,0.00011363,2]
[353991905,1740175849924,-768.2,0.00011363,2]
[353991906,1740175849934,-500.0,0.00011363,2]
[353991907,1740175849944,-785.25,0.00011363,2]
[353991908,1740175849954,-500.0,0.00011363,2]
[353991909,1740175849964,-838.82,0.00011363,2]
[353991910,1740175849974,-271.03,0.00011363,2]
[353991911,1740175849984,-1010.76,0.00011363,2]
[353991912,1740175850326,-500.0,0.00011363,2]
[353991913,1740175850349,-2224.65,0.00011363,2]
[353991914,1740175850367,-500.0,0.00011363,2]
[353991915,1740175850378,-500.0,0.00011363,2]
[353991916,1740175850387,-500.0,0.00011363,2]
[353991917,1740175850397,-500.0,0.00011363,2]
[353991918,1740175850407,-557.6,0.00011363,2]
[353991919,1740175850416,-500.0,0.00011363,2]
[353991920,1740175850426,-500.0,0.00011363,2]
[353991921,1740175850435,-500.0,0.00011363,2]
[353991922,1740175850445,-322.55216677,0.00011363,2]
[353991923,1740175850455,-500.0,0.00011363,2]
[353991924,1740175850464,-500.0,0.00011363,2]
[353991925,1740175850474,-500.0,0.00011397,2]
[353991926,1740175850484,-160.56149186,0.00011398,2]
[353991927,1740175850493,-500.0,0.00011398,2]
[353991928,1740175850503,-261.71666018,0.00011398,2]
[353991929,1740175850513,-156.44149967,0.00011398,2]
[353991930,1740175850523,-266.41588234,0.000114,2]
[353991931,1740175850533,-4100.0,0.000114,2]
[353991932,1740175850542,-1400.0,0.000114,2]
[353991933,1740175850552,-1000.0,0.00011402,2]
[353991934,1740175850562,-500.34259604,0.00011404,2]
[353991935,1740175850572,-760.43649,0.0001141,2]
[353991936,1740175850583,-150.0,0.00011435,2]
[353991937,1740175850592,-840.36,0.00011443,2]
[353991938,1740175850603,-500.0,0.00011443,2]
[353991939,1740175850613,-550.99,0.00011443,2]
[353991940,1740175850626,-456.441457,0.00011443,2]
[353991941,1740175850636,-1301.04,0.00011443,2]
[353991942,1740175850646,-660.858377,0.00011443,2]
[353991943,1740175850656,-731.38,0.00011443,2]
[353991944,1740175850665,-643.93,0.00011443,2]
[353991945,1740175850675,-770.4,0.00011443,2]
[353991946,1740175850685,-1037.35,0.00011443,2]
[353991947,1740175850696,-761.15,0.00011443,2]
[353991948,1740175850705,-694.42,0.00011443,2]
[353991949,1740175850715,-999.84,0.00011443,2]
[353991950,1740175850726,-2978.62,0.00011443,2]
[353991951,1740175850736,-531.77,0.00011443,2]
[353991952,1740175850746,-1077.31,0.00011443,2]
[353991953,1740175850756,-500.0,0.00011443,2]
[353991954,1740175850766,-999.03,0.00011443,2]
[353991955,1740175850776,-772.25,0.00011443,2]
[353991956,1740175850787,-687.87,0.00011443,2]
[353991957,1740175850797,-798.38,0.00011443,2]
[353991958,1740175850807,-1330.6,0.00011443,2]
[353991959,1740175850818,-580.79,0.00011443,2]
[353991960,1740175850829,-500.0,0.00011443,2]
[353991961,1740175850839,-1652.61,0.00011443,2]
[353991962,1740175850848,-584.29,0.00011443,2]
[353991963,1740175850858,-500.0,0.00011443,2]
[353991964,1740175850868,-1064.57,0.00011443,2]
[353991965,1740175850878,-1257.4,0.00011443,2]
[353991966,1740175850888,-617.67,0.00011443,2]
[353991967,1740175850898,-1008.78,0.00011443,2]
[353991968,1740175850908,-934.47,0.00011443,2]
[353991969,1740175850918,-155.439232,0.00011443,2]
[353991970,1740175850927,-607.43,0.00011443,2]
[353991971,1740175850937,-1149.16,0.00011443,2]
[353991972,1740175850947,-599.57,0.00011443,2]
[353991973,1740175850956,-557.37,0.00011443,2]
[353991974,1740175850966,-500.0,0.00011443,2]
[353991975,1740175850976,-1059.67,0.00011443,2]
[353991976,1740175850985,-437.54,0.00011443,2]
[353991977,1740175850995,-713.85,0.00011443,2]
[353991978,1740175851004,-619.22,0.00011443,2]
[353991979,1740175851014,-500.0,0.00011443,2]
[353991980,1740175851023,-500.0,0.00011443,2]
[353991981,1740175851032,-877.35,0.00011443,2]
[353991982,1740175851042,-1059.0,0.00011443,2]
[353991983,1740175851052,-1371.99,0.00011443,2]
[353991984,1740175851061,-1195.87,0.00011443,2]
[353991985,1740175851071,-500.0,0.00011443,2]
[353991986,1740175851081,-1159.59,0.00011443,2]
[353991987,1740175851090,-500.0,0.00011443,2]
[353991988,1740175851100,-500.0,0.00011443,2]
[353991989,1740175851111,-500.0,0.00011443,2]
[353991990,1740175851120,-716.76,0.00011443,2]
[353991991,1740175851129,-500.0,0.00011443,2]
[353991992,1740175851139,-500.0,0.00011443,2]
[353991993,1740175851149,-2524.55,0.00011443,2]
[353991994,1740175851159,-500.0,0.00011443,2]
[353991995,1740175851168,-678.77,0.00011443,2]
[353991996,1740175851178,-500.0,0.00011444,2]
[353991997,1740175851187,-500.0,0.00011444,2]
[353991998,1740175851196,-500.0,0.00011444,2]
[353991999,1740175851205,-500.0,0.00011444,2]
[353992000,1740175851215,-185.23297812,0.00011444,2]
[353992001,1740175851224,-831.16,0.00011444,2]
[353992002,1740175851233,-500.0,0.00011444,2]
[353992003,1740175851242,-672.19,0.00011444,2]
[353992004,1740175851252,-614.03,0.00011444,2]
[353992005,1740175851261,-500.0,0.00011444,2]
[353992006,1740175851271,-500.0,0.00011444,2]
[353992007,1740175851280,-356.59297544,0.00011444,2]
[353992008,1740175851289,-500.0,0.00011444,2]
[353992009,1740175851299,-586.13,0.00011444,2]
[353992010,1740175851308,-500.0,0.00011444,2]
[353992011,1740175851318,-500.0,0.00011444,2]
[353992012,1740175851328,-500.0,0.00011444,2]
[353992013,1740175851337,-500.0,0.00011444,2]
[353992014,1740175851347,-500.0,0.00011444,2]